Workbook

Sheet Daten zum Auftrag (hidden)
A1: Grau markierte Felder sind vom Antragsteller auszufüllen!
A2: Daten zum Auftrag / zur Kalkulation | W2: Partner EU (ohne USt)
W3: Partner Hochschule Bayern (ohne Ust)
A4: AUFTRAG DES / DER | W4: Partner Inland (mit USt)
E5: (Unternehmen / Firma) | W5: Partner Drittland (mit USt)
W6: Partner Drittland (ohne Ust)
A7: PARTNERLAND / UST | I7: Å Bitte auswählen! | W7: Partner Inland (mit USt) ermäßigter Steuersatz 16%
W8: Partner Inland (mit Ust) ermäßigter Steuersatz 5%
A9: Unternehmer-Nr.:/Ident-Nr.:
E10: (Nur bei Partnern aus EU oder Drittland)
A11: AN DEN LEHRSTUHL
A13: ÜBER
E15: (genaue Bezeichnung des Auftrags)
A16: ANLAGEN | D16: * | E16: Erklärung zur steuerlichen Behandlung
A17: (bitte beifügen) | D17: * | E17: Drittmittelanzeige
D18: * | E18: Erklärung zum Forschungs- / Drittmittelvorhaben
A23: I. | B23: An das Referat II /1.5
B25: Haushaltsrechtliche Prüfung
B26: mit der Bitte um rechnerische Prüfung des Auftrages / Angebotes hinsichtlich der
B28: Kalkulation (Vollkosten) ->evtl. ÄNDERUNGEN SIEHE BEIBLATT
B30: Festlegung des "Overhead-Anteils" für allgemeine Kosten (z. B. Arbeitsplatz- und Gemeinkosten,
B31: Personalaufwand in Infrastruktureinrichtungen der Universität etc.):
B32: 0.15 | C32: des Rechnungsbetrages
B34: Projektkostenstelle:
B36: Bayreuth, den
J37: (Unterschrift des Sachbearbeiters)
B38: Steuerrechtliche Prüfung
B39: Es besteht UMSATZSTEUERPFLICHT | G39: Ja | I39: Nein
B40: Wenn nein, bitte kurze Angaben: ___________________________________________________________
B41: Bei EU-Partnern, Ident.-Nr.: ________________________________
B42: Bei Partnern außerhalb der EU, Unternehmer-Nr.: _____________________________
B44: Die Einordnung in BgA (AF/WD) erfolgt nach Angabe des Lehrstuhls gem. steuerlicher Bescheinigung
B46: Bayreuth, den
H47: (Unterschrift des Sachbearbeiters)
A49: II. | B49: Bestätigung des ausführenden Lehrstuhles
B51: Kostenstelle für Materialpauschale:
B53: Der direkte Vorsteuerabzug bei Fremdleistungen wird beantragt
B55: bei bereits abgeschlossenen Projekten
B57: Die ordnungsgemäße und vollständige Ausführung wird bestätigt
B60: Die in der Kalkulation angegebenen Stunden für Gerätenutzung sind wie kalkuliert angefallen
B62: Die in der Kalkulation angegebenen Stunden für Stammpersonal
C64: sind wie kalkuliert angefallen (nicht anzukreuzen bei Projekten mit Teilzahlungen)
C66: wurden durch Stundenaufzeichung nachgewiesen
B68: Abschluss auf Restmittelkostenstelle:
B70: Bayreuth, den
I71: (Unterschrift des Projektverantwortlichen)
A72: III. | B72: Rückgabe an Referat II/1.5
B74: mit der Bitte um Rechnungsstellung und Überwachung des Geldeingangs

Sheet vereinfachte Gesamtkalkulat
A1: Kalkulation von sonstigen wirtschaftlichen Tätigkeiten
A2: Stand: Juni 2024 | R2: A3
R3: A4 | Y3: 0
A4: Art der Tätigkeit | F4: Å Bitte auswählen! | R4: A5 | Y4: Partner EU (ohne USt)
A5: Ansprechpartner bei externen Aufträgen | R5: A6 | Y5: Partner Drittland (ohne USt)
A6: durchführende Stelle (Lehrstuhl) | R6: A6+Z | Y6: Partner Drittland (mit USt) 19% | Z6: 0.19
A7: Angaben zur Rechnungsstellung | R7: A7 | Y7: Partner Inland (mit USt) 7% | Z7: 0.07
A8: PARTNERLAND / UST | F8: Å Bitte auswählen! | R8: A8 | Y8: Partner EU (mit USt) 16% | Z8: 0.16
F9: ERLÄUTERUNGEN: | R9: A9 | Y9: Partner Inland (mit USt) 19% | Z9: 0.19
A10: Einsatz von Stammpersonal | B10: Dauer | C10: Preis | D10: Kosten | R10: A9+Z | Y10: Partner EU (mit USt) 19% | Z10: 0.19
C11: =IF(ISERROR(VLOOKUP(A11,Code!$A$8:$F$59,6,0)),"",VLOOKUP(A11,Code!$A$8:$F$59,6,0)) ->  | D11: =IF(ISERROR(C11*B11),"",C11*B11) ->  | F11: Arbeitsplatzkosten und Grundausstattung | R11: A10 | Y11: Innenleistung Lehrstuhl/Einrichtung | Z11: 0
C12: =IF(ISERROR(VLOOKUP(A12,Code!$A$8:$F$59,6,0)),"",VLOOKUP(A12,Code!$A$8:$F$59,6,0)) ->  | D12: =IF(ISERROR(C12*B12),"",C12*B12) ->  | R12: A10+Z
C13: =IF(ISERROR(VLOOKUP(A13,Code!$A$8:$F$59,6,0)),"",VLOOKUP(A13,Code!$A$8:$F$59,6,0)) ->  | D13: =IF(ISERROR(C13*B13),"",C13*B13) ->  | R13: A11
C14: =IF(ISERROR(VLOOKUP(A14,Code!$A$8:$F$59,6,0)),"",VLOOKUP(A14,Code!$A$8:$F$59,6,0)) ->  | D14: =IF(ISERROR(C14*B14),"",C14*B14) ->  | R14: A12
A15: Summe | D15: =SUM(D11:D14) -> 0 | R15: A13
R16: A13+Z
A17: Personal Einstellungen (direkt für Tätigkeit) | B17: Dauer | C17: Preis | D17: Kosten | R17: A14
C18: =IF(ISERROR(VLOOKUP(A18,Code!$A$8:$F$59,6,0)),"",VLOOKUP(A18,Code!$A$8:$F$59,6,0)) ->  | D18: =IF(ISERROR(C18*B18),"",C18*B18) ->  | R18: A15
C19: =IF(ISERROR(VLOOKUP(A19,Code!$A$8:$F$59,6,0)),"",VLOOKUP(A19,Code!$A$8:$F$59,6,0)) ->  | D19: =IF(ISERROR(C19*B19),"",C19*B19) ->  | R19: A16
C20: =IF(ISERROR(VLOOKUP(A20,Code!$A$8:$F$59,6,0)),"",VLOOKUP(A20,Code!$A$8:$F$59,6,0)) ->  | D20: =IF(ISERROR(C20*B20),"",C20*B20) ->  | R20: A16+Z
A21: Summe | D21: =SUM(D18:D20) -> 0 | R21: A13 Akad.Rat
R22: W1
A23: Einsatz von Geräten | B23: Dauer | C23: Preis | D23: Kosten | R23: W2
D24: =C24*B24 -> 0 | F24: Großgeräte und Sondermaschinen müssen einzeln kalkuliert | R24: W3
D25: 0 | F25: werden | R25: C1 kw
D26: 0 | R26: C2 kw
A27: Summe | D27: =SUM(D24:D26) -> 0 | N27: =L27*M27 -> 0 | R27: C3 kw
R28: C4 kw
A29: Einsatz von Material | B29: Menge | C29: Preis | D29: Kosten | R29: E1
D30: =C30*B30 -> 0 | F30: Material ist grundsätzlich einzeln zu bewerten, wenn Erfahrungs- | R30: E2
D31: 0 | F31: werte vorliegen kann auch eine "Materialpauschale" | R31: E2Ü
D32: 0 | F32: bis maximal 350,00 EUR zum Ansatz kommen | R32: E3
A33: Summe | D33: =SUM(D30:D32) -> 0 | R33: E4
R34: E5
A35: Fremdleistungen | B35: Menge | C35: Preis | D35: Kosten | R35: E6
D36: =C36*B36 -> 0 | R36: E7
D37: =C37*B37 -> 0 | R37: E8
A38: Summe | D38: =SUM(D36:D37) -> 0 | R38: E9
R39: E10
A40: allg. Betriebs-/Verwaltungsausgaben | B40: Menge | C40: Preis | D40: Kosten | R40: E11
D41: =C41*B41 -> 0 | R41: E12
D42: =C42*B42 -> 0 | R42: E13
A43: Summe | D43: =SUM(D41:D42) -> 0 | R43: E13Ü
R44: E14
A45: å Selbstkosten vor Overhead | D45: =D15+D21+D27+D33+D38+D43 -> 0 | R45: E15
R46: E15Ü
A47: Kalkulation von sonstigen wirtschaftlichen Tätigkeiten | R47: SHK student. Hilfskräfte
R48: nwHK student. Hilfskräfte
R49: SHKBachelor student. Hilfskräfte
C50: hier "Ja" eintragen
A51: å Selbstkosten vor Overhead | D51: =D15+D21+D27+D33+D38+D43 -> 0
A52: Preissteigerungen während der Laufzeit inklusive Tariferhöhungen, bitte mit Eintrag "Ja" bestätigen | D52: =IF(C52="Ja",D51*0.05,0) -> 0
A54: å Selbstkosten nach Umlage | D54: =D52+D51 -> 0
A56: Gewinn in Prozent | D56: =D54*C56 -> 0 | F56: Der Nettoüberschuss wird auf AA 961 der Restmittelkostenstelle überführt
A57: Nettoüberschuss vorweg verfügbar | B57: 0.2 | C57: =D56*B57 -> 0
A58: Gewinn in EURO (alternativ) | D58: =C58 -> 0
A59: Nettoüberschuss vorweg verfügbar | B59: 0.2 | C59: =C58*B59 -> 0
A61: Nettosumme vor Overhead | D61: =D56+D54+D58 -> 0
A62: Overhead | B62: im Hundert | C62: =IF(A67="Innenleistung Lehrstuhl/Einrichtung",0%,20%) -> 0.2 | D62: =D61/75*(C62*100) -> 0
A63: Ertragssteuerumlageanteil | C63: =IF(A67="Innenleistung Lehrstuhl/Einrichtung",0%,5%) -> 0.05 | D63: =IF(C63=0,0,D61/75*5) -> 0
A65: Gesamtnettosumme | D65: =D61+D62+D63 -> 0
B67: =VLOOKUP(A67,$Y$4:$Z$13,2,FALSE) ->  | C67: =B67 ->  | D67: =D65*C67 -> 
A69: Bruttosumme | D69: =D65+D67 -> 
A77: Auf Dienstpflicht wird bestätigt:
A79: Mir ist bekannt, dass nach dem EU-Gemeinschaftsrahmen für staatliche Beihilfen für Forschung,
A80: Entwicklung und Innovation (Beihilferahmen) zur Vermeidung von Wettbewerbsverzerrungen eine
A81: Trennung von wirtschaftlichen und nichtwirtschaftlichen Tätigkeiten erforderlich ist und insoweit eine
A82: Quersubventionierung von wirtschaftlicher Tätigkeit aus staatlichen Haushaltsmitteln unzulässig ist.
A84: Das obige Projekt / die obige Kalkulation trägt dem Rechnung und wurde deshalb im Zuge der
A85: Angebotserstellung nach einer Vollkostenkalkulation bzw. nach marktüblichen Preisen kalkuliert.
A87: Ferner wird sichergestellt, dass alle Ausgaben für das Projekt nachweisbar / spezifizierbar sind.
A88: Entsprechende Aufzeichnungen werden geführt und für eine evtl. Prüfung durch die EU nach den
A89: einschlägigen Aufbewahrungsbestimmungen aufbewahrt.
A92: ________________________________ | C92: ___________________________________
A93: Datum, Unterschrift des Projektleiters | C93: Datum, Unterschrift des Lehrstuhlinhabers
C94: (falls nicht gleichzeitig Projektleiter)
A114: ,

Sheet Code (hidden)
A1: A. Auftragsspezifische Personalkosten
A2: Personalvollkosten ab 1. Dezember 2022
A3: Nur grün hinterlegte Felder ausfüllen !
A4: Beamte | C4: Angestellte | E4: Personalvollkosten_Beamte/Angestellte
A5: BesGr | B5: Stufe | C5: Entgelt-gruppe | D5: Entgeltgruppe (Übergeleiteter Bestand) | E5: Jahr (in Euro) | F5: Stunde (in Euro)
A8: A3 | B8: 8* | C8: E2, E2Ü, E1 | D8: E2Ü | E8: 73359 | F8: 44.73
A9: A4 | B9: 8* | E9: 76080 | F9: 46.4
A10: A5 | B10: Endstufe | C10: E3 | D10: E3 | E10: 76740 | F10: 46.8
A11: A6 | C11: E5, E4 | E11: 77613 | F11: 47.32
A12: A6+Z | B12: Endstufe | E12: 80709 | F12: 49.22
A13: A7 | B13: 7 | C13: E7, E6 | D13: E7, E6 | E13: 81088 | F13: 49.44
A14: A8 | B14: Endstufe | C14: E8 | D14: E8 | E14: 88155 | F14: 53.76
A15: A9 | C15: E9 | D15: E9 | E15: 91031 | F15: 55.24
A16: A9+Z | B16: Endstufe | E16: 101400 | F16: 61.53
A17: A10 | B17: 6 | C17: E10 | D17: E10 | E17: 97265 | F17: 59.02
A18: A10+Z | B18: Endstufe | E18: 103812 | F18: 63
A19: A11 | B19: 7 | C19: E11 | D19: E11 | E19: 109049 | F19: 66.17
A20: A12 | B20: Endstufe | C20: E12 | D20: E12 | E20: 123293 | F20: 74.82
A21: A13 | C21: E13, E13Ü | D21: E13 | E21: 129904 | F21: 76.96
A22: A13+Z | B22: Endstufe | E22: 142730 | F22: 84.55
A23: A14 | B23: 7 | C23: E14 | D23: E14, E13Ü | E23: 142058 | F23: 84.16
A24: A15 | B24: 8 | C24: E15 | E24: 158734 | F24: 94.04
A25: A16 | B25: Endstufe | C25: E15Ü | E25: 180834 | F25: 107.13
A26: A16+Z | B26: Endstufe | E26: 186267 | F26: 110.34
A27: Angestellte | C27: Angestellte | E27: Angestellte
A28: E1 | B28: 8* | E28: 70407 | F28: 42.93
A29: E2 | E29: 70407 | F29: 42.93
A30: E2Ü | E30: 70407 | F30: 42.93
A31: E3 | B31: Endstufe | E31: 73876 | F31: 45.05
A32: E4 | E32: 74664 | F32: 45.53
A33: E5 | E33: 74664 | F33: 45.53
A34: E6 | E34: 78152 | F34: 47.66
A35: E7 | B35: 7 | E35: 78152 | F35: 47.66
A36: E8 | B36: Endstufe | E36: 85291 | F36: 52.01
A37: E9 | E37: 88247 | F37: 53.55
A38: E10 | B38: 5 | E38: 94654 | F38: 57.43
A39: E11 | B39: 7 | E39: 106699 | F39: 64.74
A40: E12 | B40: Endstufe | E40: 120945 | F40: 73.39
A41: E13 | E41: 127302 | F41: 75.41
A42: E13Ü | E42: 127302 | F42: 75.41
A43: E14 | B43: 7 | E43: 140093 | F43: 82.99
A44: E15 | B44: 8 | E44: 156149 | F44: 92.51
A45: E15Ü | B45: Endstufe | E45: 178249 | F45: 105.6
A46: Beamte | C46: Beamte | E46: Beamte
A47: A13 Akad.Rat | B47: Akad. Rat a. Z./Stufe 6 | E47: 121293 | F47: 71.85
A48: W1 | E48: 121182 | F48: 71.79
A49: W2 | B49: 2 | C49: ohne Leistungs- bezüge | E49: 152701 | F49: 90.47
A50: W3 | B50: 2 | E50: 177315 | F50: 105.04
A52: C1 kw | B52: 13 | E52: 136110 | F52: 80.64
A53: C2 kw | B53: Endstufe | E53: 160835 | F53: 95.28
A54: C3 kw | B54: Endstufe | E54: 177595 | F54: 105.21
A55: C4 kw | B55: Endstufe | E55: 247950 | F55: 146.89
A56: Studentische Hilfskräfte | E56: Studentische Hilfskräfte
A57: SHK student. Hilfskräfte | F57: 22.39
A58: nwHK student. Hilfskräfte | F58: 22.39
A59: SHKBachelor student. Hilfskräfte | F59: 24.08

Sheet Einleitung (hidden)
F5: Formular H 1244
F6: Stand: 01/2019
F7: Kalkulationsschema für Auftragsforschung und wissenschaftliche Dienstleistung
F9: Bitte übermitteln Sie alle folgenden Blätter nur ausgedruckt mit Originalunterschrift!
B10: Liebe Nutzerin,
B11: lieber Nutzer,
B13: mit dieser Projektkalkulation werden die Vollkosten für ein Drittmittelprojekt berechnet. Diese Vorlage ist so aufgebaut, dass nur noch bestimmte Felder gefüllt werden müssen und am Ende eine komplette
B14: Vollkostenrechnung entsteht. Bitte gehen Sie nach folgender Anleitung vor.
B16: In den nachfolgenden Tabellenblättern:
B18: Personalkosten
B19: Gerätenutzungskosten
B20: Materialkosten
B21: Fremdleistungskosten
B22: sonstige direkt zurechenbare Kosten
B24: füllen Sie bitte nur die für Sie zutreffenden grün hinterlegten Felder aus.
B25: Alle anderen Felder sind gesperrt und können nicht bearbeitet werden.
B26: Im letzten Tabellenblatt
B27: Gesamtkosten
B28: werden automatisch die Vollkosten der Kalkulation errechnet.
B31: Auf jedem Tabellenblatt ist ein Beispieleintrag abgebildet, der Ihnen als Muster dienen kann. Hier exemplarisch das Beispiel aus dem Tabellenblatt Materialkosten:
B33: Beispiel
B34: eingesetzes Material z. B. Chemikalien | D34: Preis einer Einheit in Euro | E34: Einheit | F34: Menge | G34: Gesamt- preis in Euro
B39: Acetylsalicylsäure | D39: 1.5 | E39: g | F39: 200 | G39: =F39*D39 -> 300
I41: Das Feld "Gesamtpreis in Euro" berechnet sich automatisch aus den Feldern "Preis einer Einheit in Euro" und
I42: "Menge" sobald beide Felder gefüllt sind.
I44: Bitte füllen Sie die grün hinterlegten Felder gemäß Ihrer Beschriftung und Ihrem Projektbedarf aus.
B46: Alle anderen Felder bleiben entweder unverändert oder berechnen sich nach Eingabe aller wichtigen Felder von selbst. Gelb hinterlegte Felder sind Summenfelder.
B48: Sollten Sie zu den einzelnen Tabellenblättern dennoch Fragen haben, befinden sich auf allen Tabellenblättern die jeweiligen Ansprechpartner mit Kontaktinformationen.
B50: Da auf dem Tabellenblatt Gesamtkalkulation die Mehrwertsteuer hinzugerechnet wird, müssen alle eingetragenen Beträge Nettobeträge sein. Sollten Sie nur die Bruttobeträge zur Hand haben
B51: können Sie den Nettobetrag nach folgender Formel berechnen:
B52: Bruttobetrag | C52: geteilt durch | D52: 119 | E52: mal | F52: 100 | G52: ist gleich | H52: Nettobetrag
B53: 119 | C53: / | D53: 119 | E53: * | F53: 100 | G53: = | H53: 100 | I53: Beispiel 1
B54: 272.5 | C54: / | D54: 119 | E54: * | F54: 100 | G54: = | H54: =B54/119*100 -> 228.9915966 | I54: Beispiel 2

Sheet Personalkosten (hidden)
A1: A. Auftragsspezifische Personalkosten
A2: Personalvollkosten ab Dezember 2022
A3: Nur grün hinterlegte Felder ausfüllen !
A4: Beamte | C4: Angestellte | E4: Personaldurchschnittskosten | G4: Personalvollkosten | I4: Std. | J4: Beamte Stammpersonal = vorhandenes Lehrstuhlpersonal, das über eine Haushaltsstelle finanziert wird | K4: Std. | L4: Angestellte Stammpersonal = vorhandenes Lehrstuhlpersonal, das über eine Haushaltsstelle finanziert wird | M4: Std. | N4: Direkteinstellungen= Personal, welches eigens für die Durchführung des Vorhabens auf das Projekt eingestellt wird | P4: Die Arbeitsplatzkosten und die Grundausstattung sind bei den Personalvollkosten mit eingerechnet.
A5: BesGr | B5: Stufe | C5: Entgelt-gruppe | D5: Entgelt-gruppe (Über-geleiteter Bestand) | E5: Jahr (in Euro) | F5: Stunde (in Euro) | G5: Jahr (in Euro) | H5: Stunde (in Euro)
A8: A3 | B8: Endstufe | C8: E2, E2Ü, E1 | D8: E2Ü | G8: =Code!$E8 -> 73359 | H8: =VLOOKUP(A8,Code!$A$5:$F$26,6,0) -> 44.73 | J8: =H8*I8 -> 0 | L8: =K8*H8 -> 0 | N8: =H8*M8 -> 0
A9: A4 | B9: Endstufe | G9: =Code!$E9 -> 76080 | H9: =VLOOKUP(A9,Code!$A$5:$F$26,6,0) -> 46.4 | J9: =H9*I9 -> 0 | L9: =K9*H9 -> 0 | N9: =H9*M9 -> 0
A10: A5 | B10: Endstufe | C10: E3 | D10: E3 | G10: =Code!$E10 -> 76740 | H10: =VLOOKUP(A10,Code!$A$5:$F$26,6,0) -> 46.8 | J10: 0 | L10: 0 | N10: 0
A11: A6 | C11: E5, E4 | G11: =Code!$E11 -> 77613 | H11: =VLOOKUP(A11,Code!$A$5:$F$26,6,0) -> 47.32 | J11: 0 | L11: 0 | N11: 0
A12: A6+Z | B12: Endstufe | G12: 72162 | H12: =VLOOKUP(A12,Code!$A$5:$F$26,6,0) -> 49.22 | J12: 0 | L12: 0 | N12: 0
A13: A7 | B13: 8 | C13: E7, E6 | D13: E7, E6 | G13: 72527 | H13: =VLOOKUP(A13,Code!$A$5:$F$26,6,0) -> 49.44 | J13: 0 | L13: 0 | N13: 0
A14: A8 | B14: Endstufe | C14: E8 | D14: E8 | G14: 79163 | H14: =VLOOKUP(A14,Code!$A$5:$F$26,6,0) -> 53.76 | J14: 0 | L14: 0 | N14: 0 | P14: Stunden pro Jahr | S14: 1720
A15: A9 | C15: E9 | D15: E9 | G15: 81899 | H15: =VLOOKUP(A15,Code!$A$5:$F$26,6,0) -> 55.24 | J15: 0 | L15: 0 | N15: 0 | P15: Stunden pro Monat | S15: =S14/12 -> 143.3333333
A16: A9+Z | B16: Endstufe | G16: 91487 | H16: =VLOOKUP(A16,Code!$A$5:$F$26,6,0) -> 61.53 | J16: 0 | L16: 0 | N16: 0 | P16: Stunden pro Tag | S16: =S15/19 -> 7.543859649
A17: A10 | B17: 6 | C17: E10 | D17: E10 | G17: 85909 | H17: =VLOOKUP(A17,Code!$A$5:$F$26,6,0) -> 59.02 | J17: 0 | L17: 0 | N17: 0
A18: A10+Z | B18: Endstufe | G18: 93808 | H18: =VLOOKUP(A18,Code!$A$5:$F$26,6,0) -> 63 | J18: 0 | L18: 0 | N18: 0
A19: A11 | B19: 8 | C19: E11 | D19: E11 | G19: 96992 | H19: =VLOOKUP(A19,Code!$A$5:$F$26,6,0) -> 66.17 | J19: =H19*I19 -> 0 | L19: 0 | N19: 0
A20: A12 | B20: Endstufe | C20: E12 | D20: E12 | G20: 112295 | H20: =VLOOKUP(A20,Code!$A$5:$F$26,6,0) -> 74.82 | J20: 0 | L20: 0 | N20: 0 | P20: Forschungs- und Lehrzulage
A21: A13 | C21: E13, E13Ü | D21: E13 | G21: =Code!$E21 -> 129904 | H21: =VLOOKUP(A21,Code!$A$5:$F$26,6,0) -> 76.96 | J21: 0 | L21: 0 | N21: 0 | P21: Professoren und Professorinnen, die im Hauptamt Mittel privater Dritter für Forschungs- und Lehrvorhaben der Hochschule einwerben und diese Vorhaben durchführen, kann für die Dauer des Drittmittelflusses aus diesen Mitteln eine nicht ruhegeltfähige Zulage gewährt werden, soweit der Drittmittelgeber mit der Vergabe einverstanden ist. Eine Zulage darf nur gewährt werden, soweit neben den übrigen Kosten des Forschungs- und Lehrvorhabens auch die für die Gewährung der Forschungs- und Lehrzulage aufzuwendenden Beträge durch die Drittmittel gedeckt sind. Forschungs- und Lehrzulagen dürfen innerhalb eines Kalenderjahres insgesamt 100 v. H. des Jahresgrundgehalts des Professors oder der Professorin nicht überschreiten. Die Lehrtätigkeit im Rahmen eines Lehrvorhabens, für das eine Lehrzulage gewährt wird, ist auf die jeweils obliegende Lehrverpflichtung nicht anzurechnen. Anm.: Die BayHLeistBV ist nur auf Professoren in der W-Besoldung anwendbar.
A22: A13+Z | B22: Endstufe | G22: =Code!$E22 -> 142730 | H22: =VLOOKUP(A22,Code!$A$5:$F$26,6,0) -> 84.55 | J22: 0 | L22: 0 | N22: 0
A23: A14 | B23: 7 | C23: E14 | D23: E14, E13Ü | G23: =Code!$E23 -> 142058 | H23: =VLOOKUP(A23,Code!$A$5:$F$26,6,0) -> 84.16 | J23: 0 | L23: 0 | N23: 0
A24: A15 | B24: 8 | C24: E15 | G24: 140455 | H24: =VLOOKUP(A24,Code!$A$5:$F$26,6,0) -> 94.04 | J24: 0 | L24: 0 | N24: 0
A25: A16 | B25: Endstufe | C25: E15Ü | G25: 165564 | H25: =VLOOKUP(A25,Code!$A$5:$F$26,6,0) -> 107.13 | J25: 0 | L25: 0 | N25: 0
A26: A16+Z | B26: Endstufe | G26: 170574 | H26: =VLOOKUP(A26,Code!$A$5:$F$26,6,0) -> 110.34 | J26: 0 | L26: 0 | N26: 0
A28: Sonderfall: Kalkulierte Personalkosten | I28: Betrag in Personalabteilung zu erfragen und zu bestätigen
A29: zuzüglich 30% arbeitsplatzbezogene Gemeinkosten | N29: =N28*0.3 -> 0
A32: A13 | B32: Akad. Rat a. Z./Stufe 6 | G32: 91301 | H32: 54.09 | J32: =H32*I32 -> 0 | N32: =H32*M32 -> 0
A33: W1 | G33: 90864 | H33: 53.83 | J33: =H33*I33 -> 0 | N33: =H33*M33 -> 0
A34: W2 | B34: 2 | C34: ohne Leistungs- bezüge | G34: 115109 | H34: 68.19 | J34: =H34*I34 -> 0 | N34: =H34*M34 -> 0
A35: W3 | B35: 2 | G35: 134043 | H35: 79.41 | J35: =H35*I35 -> 0 | N35: =H35*M35 -> 0
A37: C1 kw | B37: 13 | G37: 102340 | H37: 60.63 | J37: 0 | N37: 0
A38: C2 kw | B38: Endstufe | G38: 121372 | H38: 71.9 | J38: 0 | N38: 0
A39: C3 kw | B39: Endstufe | G39: 134265 | H39: 79.54 | J39: 0 | N39: 0
A40: C4 kw | B40: Endstufe | G40: 187836 | H40: 111.28 | J40: 0 | N40: 0
A42: Studentische Hilfskräfte
A43: SHK student. Hilfskräfte | H43: =Code!F57 -> 22.39 | L43: =K43*H43 -> 0 | N43: =M43*H43 -> 0
A44: nwHK student. Hilfskräfte | H44: =Code!F58 -> 22.39 | L44: =K44*H44 -> 0 | N44: =M44*H44 -> 0
A45: SHKBachelor student. Hilfskräfte | H45: =Code!F59 -> 24.08 | L45: =K45*H45 -> 0 | N45: =M45*H45 -> 0
P48: Die Stundenangaben bei der Gruppe studentische
J49: Stammpers.Beamte | L49: Stammpers. Angest. | N49: Direkteinstellungen | P49: Hilfskräfte sind nicht mit der oben genannten Zahl
A50: Gesamt | C50: in Euro | J50: =SUM(J8:J45) -> 0 | L50: =SUM(L8:L45) -> 0 | N50: =SUM(N8:N45) -> 0 | P50: identisch. Bitte geben Sie bei den studentischen
P51: Hilfskräften die genaue Stundenzahl ein, z. B. 39,5
P52: Stunden für die Monatsarbeitszeit. Für die Jahres-
P53: arbeitszeit dies mal 12, für Wochen geteilt durch 4.
A54: Forschungs- und Lehrzulage
P68: SHK | Q68: studentische Hilfskraft
P69: nwHK | Q69: nicht wissenschaftliche Hilfskraft
P70: SHKBachelor | Q70: studentische Hilfskraft Bachelor
P73: Bitte alle Tabellenblätter ausfüllen:
P74: Personalkosten
P75: Gerätenutzungskosten
P76: Materialkosten
P77: Fremdleistungskosten
P78: sonstige direkt zurechenbare Kosten
P79: Gesamtkosten

Sheet Tabelle4 (hidden)

Sheet Tabelle1 (hidden)

Sheet Tabelle2 (hidden)

Sheet Tabelle3 (hidden)
